bitfinex-derivatives/quotes_SOLF0:USTF0_20241227
["timestamp","ask_amount","ask_price","bid_price","bid_amount"]
[1735294261601,2.601,192.46,192.41,2.6014]
[1735294261799,3.6,192.5,192.37,1.567]
[1735294261999,3.6,192.5,192.38,4.65422748]
[1735294262198,3.6,192.52,192.39,4.65422748]
[1735294262401,4.3136,192.59,192.4,4.65422748]
[1735294262602,3.6,192.58,192.41,8.25422748]
[1735294262801,3.6,192.58,192.42,4.65422748]
[1735294263002,3.6,192.58,192.43,4.65422748]
[1735294263204,3.6,192.58,192.44,4.65422748]
[1735294263403,3.6,192.58,192.46,2.6009]
[1735294263799,2.6002,192.51,192.46,2.6009]
[1735294264600,3.6,192.58,192.44,2.601]
[1735294264802,3.6,192.58,192.45,4.66155367]
[1735294265102,3.6,192.58,192.38,3.6]
[1735294265399,3.6,192.58,192.39,4.66208568]
[1735294265605,3.6,192.58,192.42,2.6014]
[1735294266000,3.6,192.58,192.43,2.6012]
[1735294266202,3.6,192.58,192.44,4.66454917]
[1735294266404,3.6,192.58,192.38,3.6]
[1735294266605,2.6005,192.49,192.39,4.66520262]
[1735294266804,2.6005,192.49,192.4,4.66520262]
[1735294267006,2.6005,192.49,192.41,4.66520262]
[1735294267301,2.6005,192.49,192.42,4.66520262]
[1735294267508,2.6008,192.47,192.43,4.66520262]
[1735294267707,2.6008,192.47,192.38,3.6]
[1735294268002,3.6,192.51,192.39,4.66601238]
[1735294268199,3.6,192.51,192.37,1.567]
[1735294268401,3.6,192.51,192.38,4.66479338]
[1735294268607,3.6,192.51,192.39,4.66479338]
[1735294268803,3.6,192.51,192.4,4.66479338]
[1735294269107,2.601,192.46,192.41,4.66479338]
[1735294269314,3.6,192.51,192.37,1.567]
[1735294269505,3.6,192.51,192.38,4.665683]
[1735294269805,3.6,192.51,192.39,4.665683]
[1735294270007,3.6,192.51,192.4,4.665683]
[1735294270203,3.6,192.51,192.41,4.665683]
[1735294270407,3.6,192.51,192.42,4.665683]
[1735294270615,3.6,192.51,192.43,4.66899756]
[1735294270913,3.6,192.51,192.4,2.6017]
[1735294270914,2.601,192.45,192.4,2.6017]
[1735294271113,2.601,192.45,192.41,4.66936604]
[1735294271309,2.601,192.45,192.4,2.6017]
[1735294271503,2.601,192.45,192.41,4.66825463]
[1735294271699,3.2118,192.5,192.42,4.66825463]
[1735294271907,2.6013,192.44,192.38,2.6018]
[1735294272210,3.2118,192.5,192.39,4.67092662]
[1735294272409,3.2118,192.5,192.4,4.67092662]
[1735294272611,3.2118,192.5,192.41,4.67092662]
[1735294272908,3.2118,192.5,192.37,1.567]
[1735294273112,2.6012,192.44,192.38,7.27462484]
[1735294273410,3.6,192.46,192.39,4.67272484]
[1735294273608,3.6,192.46,192.4,4.67272484]
[1735294273808,3.6,192.46,192.41,4.67272484]
[1735294274008,3.6,192.46,192.42,4.67272484]
[1735294274207,3.6,192.46,192.37,4.1691]
[1735294274407,3.6,192.46,192.38,4.67368115]
[1735294274707,3.6,192.46,192.39,7.27548115]
[1735294274903,3.6,192.46,192.4,4.67368115]
[1735294275110,2.6012,192.44,192.41,4.67368115]
[1735294275403,2.6012,192.44,192.42,4.67921056]
[1735294275607,2.6012,192.44,192.34,3.2287]
[1735294275805,2.6012,192.44,192.35,4.67921056]
[1735294276006,2.6012,192.44,192.38,2.6018]
[1735294276207,2.6012,192.44,192.39,4.67921056]
[1735294276407,2.6007,192.47,192.4,4.67921056]
[1735294276607,2.6007,192.47,192.41,4.67921056]
[1735294276909,2.6007,192.47,192.42,4.67921056]
[1735294277104,2.6007,192.47,192.43,4.67921056]
[1735294277309,2.6007,192.47,192.44,4.67921056]
[1735294277511,2.6007,192.47,192.45,4.67921056]
[1735294277699,2.6007,192.47,192.42,2.6014]
[1735294278005,3.6,192.48,192.34,3.2287]
[1735294278006,2.6007,192.48,192.43,2.6012]
[1735294278209,3.6,192.49,192.34,3.2287]
[1735294278408,3.6,192.49,192.35,4.68249356]
[1735294278604,3.6,192.49,192.34,3.2287]
[1735294278605,2.6011,192.45,192.4,2.6017]
[1735294278804,2.6011,192.45,192.41,4.68249356]
[1735294279010,2.6011,192.45,192.42,4.68249356]
[1735294279206,2.6011,192.45,192.43,4.68249356]
[1735294279414,2.6011,192.45,192.4,2.6017]
[1735294279709,2.6013,192.43,192.41,4.68645969]
[1735294279908,2.6013,192.43,192.38,2.6018]
[1735294279909,2.6013,192.43,192.42,4.68645969]
[1735294280507,2.6013,192.43,192.37,2.602]
[1735294280708,3.6,192.49,192.38,4.68775149]
[1735294280910,2.6015,192.42,192.39,4.68773542]
[1735294281108,2.6015,192.42,192.4,4.68773542]
[1735294281301,2.6015,192.42,192.41,4.68773542]
[1735294281502,2.6016,192.41,192.36,2.6021]
[1735294281707,2.6016,192.41,192.37,4.68815866]
[1735294282007,2.6016,192.41,192.38,4.68815866]
[1735294282208,2.6016,192.41,192.39,4.68815866]
[1735294282408,2.6016,192.41,192.36,2.6021]
[1735294282612,2.6016,192.41,192.37,4.68872302]
[1735294282909,2.6016,192.41,192.38,4.68872302]
[1735294283108,2.6016,192.41,192.39,4.68872302]
[1735294283310,2.6016,192.41,192.36,2.6021]
[1735294283512,2.6016,192.41,192.37,4.68908078]
[1735294283710,3.6,192.43,192.38,4.68908078]
[1735294283906,3.6,192.43,192.39,4.68908565]
[1735294284215,3.6,192.43,192.34,3.2287]
[1735294284405,3.6,192.43,192.35,4.68972021]
[1735294284610,3.6,192.43,192.36,4.68972021]
[1735294284812,3.6,192.43,192.37,4.68972021]
[1735294285011,2.6018,192.4,192.38,4.68972021]
[1735294285312,3.6,192.43,192.28,6.9031]
[1735294285514,2.6018,192.4,192.33,2.6026]
[1735294285715,3.6,192.43,192.34,4.68906083]
[1735294286015,2.6016,192.41,192.35,4.68906083]
[1735294286215,3.6,192.43,192.36,4.68906083]
[1735294286513,3.6,192.43,192.3,1.6342]
[1735294286714,2.6018,192.39,192.33,2.6026]
[1735294286910,2.6018,192.39,192.34,4.69025105]
[1735294287113,2.6018,192.39,192.35,4.69025105]
[1735294287317,2.6017,192.4,192.36,4.69025105]
[1735294287512,2.6017,192.4,192.34,2.6025]
[1735294287713,2.6017,192.4,192.35,4.69025444]
[1735294288010,2.6017,192.4,192.36,4.69025444]
[1735294288212,2.6027,192.33,192.27,2.6034]
[1735294288415,3.6,192.42,192.28,4.68932891]
[1735294288610,3.6,192.42,192.29,4.68932891]
[1735294288811,3.6,192.42,192.3,4.68932891]
[1735294289013,3.6,192.42,192.31,4.68932891]
[1735294289210,2.6024,192.35,192.21,15.60943834]
[1735294289516,2.6024,192.35,192.22,4.68852633]
[1735294289706,2.6024,192.35,192.21,8.4412]
[1735294289707,2.6024,192.35,192.23,4.68852633]
[1735294289911,2.6024,192.35,192.24,4.68953494]
[1735294290209,3.6,192.42,192.25,4.68953494]
[1735294290417,3.6,192.42,192.26,4.68953494]
[1735294290714,3.6,192.42,192.27,4.68953494]
[1735294290916,3.6,192.42,192.28,4.68953494]
[1735294291114,3.6,192.42,192.29,4.68953494]
[1735294291315,3.6,192.42,192.3,4.68953494]
[1735294291516,3.6,192.42,192.21,8.4412]
[1735294291813,3.6,192.42,192.22,8.2896981]
[1735294292017,3.6,192.42,192.25,2.6036]
[1735294292317,3.6,192.42,192.26,4.6896981]
[1735294292515,2.6025,192.34,192.28,2.6032]
[1735294292711,2.6025,192.34,192.29,4.6896981]
[1735294292916,2.6025,192.34,192.3,4.69042553]
[1735294293117,2.6025,192.34,192.28,4.1984]
[1735294293618,2.6025,192.34,192.29,4.69039027]
[1735294293817,2.6025,192.34,192.3,4.69039027]
[1735294294019,2.6025,192.34,192.28,4.1984]
[1735294294218,2.6027,192.33,192.29,4.69144488]
[1735294294419,3.6,192.36,192.3,4.69294699]
[1735294294620,3.6,192.35,192.28,1.5952]
[1735294294817,2.6029,192.32,192.29,4.69294718]
[1735294295018,3.6,192.35,192.22,1.5952]
[1735294295317,2.6029,192.31,192.25,2.6037]
[1735294295514,3.6,192.35,192.26,4.69297709]
[1735294295716,3.6,192.35,192.27,4.69297709]
[1735294295916,3.6,192.35,192.28,4.69297709]
[1735294296217,2.603,192.3,192.29,4.69297709]
[1735294297018,3.6,192.35,192.29,4.69297709]
[1735294297219,3.6,192.35,192.25,2.6037]
[1735294297420,3.6,192.35,192.26,4.69427454]
[1735294297719,3.6,192.35,192.27,4.69427454]
[1735294297921,3.6,192.35,192.28,4.69427454]
[1735294298112,3.6,192.35,192.22,3.23]
[1735294298315,2.6031,192.3,192.24,2.6038]
[1735294298510,2.6031,192.3,192.25,4.69600058]
[1735294298710,3.6,192.35,192.26,4.69600058]
[1735294298919,2.6032,192.29,192.27,4.69600058]
[1735294299119,2.6032,192.29,192.28,4.69600058]
[1735294299922,2.6027,192.33,192.28,4.69859314]
[1735294300114,3.1615,192.34,192.22,5.834]
[1735294300316,3.1615,192.34,192.23,4.69862196]
[1735294300618,2.6037,192.26,192.24,4.69862196]
[1735294300818,2.6037,192.26,192.22,3.23]
[1735294300819,3.6,192.29,192.22,3.23]
[1735294301023,3.6,192.29,192.23,4.70022255]
[1735294301322,3.6,192.29,192.22,1.5952]
[1735294301521,2.6037,192.26,192.23,4.69786959]
[1735294301723,3.6,192.29,192.22,1.5952]
[1735294301911,3.6,192.29,192.23,4.69978981]
[1735294302117,3.6,192.29,192.22,1.5952]
[1735294302617,2.6039,192.24,192.23,4.69875153]
[1735294302818,3.6,192.29,192.17,1.6319]
[1735294303014,3.6,192.29,192.18,4.69893013]
[1735294303218,3.6,192.29,192.19,4.69893013]
[1735294303415,2.6041,192.23,192.2,4.69893013]
[1735294303614,2.6041,192.23,192.21,4.69893013]
[1735294303818,2.6041,192.23,192.17,1.6319]
[1735294304026,2.6043,192.21,192.18,4.69705981]
[1735294304223,3.6,192.29,192.19,4.69705981]
[1735294304425,3.6,192.29,192.2,4.69705981]
[1735294304630,3.6,192.29,192.21,4.69705981]
[1735294304820,3.6,192.29,192.17,1.6319]
[1735294305020,3.6,192.29,192.18,4.69527684]
[1735294305326,3.6,192.29,192.19,4.69527684]
[1735294305327,2.6038,192.25,192.19,4.69527684]
[1735294305520,2.6038,192.25,192.18,2.6046]
[1735294305521,2.6038,192.25,192.2,4.69527684]
[1735294305816,2.6038,192.25,192.18,2.6046]
[1735294306022,54.12,192.28,192.19,4.69326031]
[1735294306224,3.6,192.27,192.04,7.16823834]
[1735294306422,3.6,192.27,192.05,3.1169]
[1735294306725,2.6053,192.14,192.07,2.6061]
[1735294306926,3.6,192.17,192.05,3.1169]
[1735294307128,3.6,192.16,192.05,3.1169]
[1735294307335,3.6,192.17,192.05,3.1169]
[1735294307531,1.0916,192.28,192.08,2.606]
[1735294307831,3.6,192.27,192.08,2.606]
[1735294308235,3.6,192.27,192.05,3.1169]
[1735294308425,3.6,192.27,192.07,2.6062]
[1735294308629,2.6054,192.13,192.05,3.1169]
[1735294308830,3.6,192.16,192.05,5.7233]
[1735294309031,3.6,192.16,192.05,3.1169]
[1735294309432,1.0916,192.28,192.05,3.1169]
[1735294309626,3.6,192.27,192.05,3.1169]
[1735294310036,2.6048,192.17,192.05,3.1169]
[1735294310235,3.6,192.19,192.05,3.1169]
[1735294310935,2.605,192.16,192.1,2.6057]
[1735294311338,3.6,192.19,192.05,3.1169]
[1735294311537,2.605,192.16,192.1,2.6057]
[1735294311832,2.605,192.16,192.05,3.1169]
[1735294312239,2.6051,192.15,192.09,2.6058]
[1735294312836,2.6051,192.15,192.1,2.6057]
[1735294313036,3.6,192.19,192.05,3.1169]
[1735294313037,2.6049,192.17,192.05,3.1169]
[1735294313343,2.6049,192.17,192.1,2.6056]
[1735294313842,2.6049,192.17,192.05,3.1169]
[1735294314740,3.58,192.19,192.05,3.1169]
[1735294315333,2.6051,192.16,192.1,2.6057]
[1735294315537,2.6051,192.16,192.05,3.1169]
[1735294315943,3.58,192.19,192.1,2.6057]
[1735294316140,2.6051,192.15,192.1,2.6057]
[1735294317742,3.58,192.19,192.05,3.1169]
[1735294317942,2.6053,192.16,192.1,2.6059]
[1735294318145,3.58,192.19,192.1,2.6059]
[1735294318447,3.58,192.19,192.05,3.1169]
[1735294318448,2.6054,192.14,192.09,2.6061]
[1735294318949,2.6052,192.16,192.1,2.6059]
[1735294319139,3.58,192.19,192.05,3.1169]
[1735294319445,2.6056,192.14,192.08,2.6062]
[1735294320150,2.6056,192.14,192.09,2.6061]
[1735294320744,3.58,192.19,192.09,2.6061]
[1735294320946,3.58,192.19,192.05,3.1169]
[1735294322151,3.1373,192.27,192.05,3.1169]
[1735294322348,4.40503219,192.26,192.05,3.1169]
[1735294322553,0.80503219,192.25,192.05,3.1169]
[1735294322958,2.6047,192.2,192.11,2.6058]
[1735294323148,3.6,192.19,192.05,3.1169]
[1735294323351,3.6,192.18,192.05,3.1169]
[1735294323552,6.2051,192.17,192.08,2.6062]
[1735294323748,2.6051,192.17,192.05,3.1169]
[1735294324152,2.6051,192.17,192.11,2.6058]
[1735294324863,6.2049,192.18,192.12,2.6057]
[1735294325161,3.6,192.18,192.12,2.6057]
[1735294326561,2.6051,192.17,192.12,2.6057]
[1735294327452,2.6051,192.17,192.11,2.6058]
[1735294328456,3.6,192.18,192.05,3.1169]
[1735294328652,2.6053,192.15,192.09,2.606]
[1735294329655,2.6054,192.14,192.08,2.6062]
[1735294329857,3.6,192.18,192.08,2.6062]
[1735294330252,2.6055,192.14,192.08,2.6062]
[1735294330761,2.6055,192.14,192.09,2.6061]
[1735294330960,2.6053,192.15,192.05,3.1169]
[1735294332171,31.49005172,192.27,192.05,3.1169]
[1735294332461,3.6,192.26,192.05,3.1169]
[1735294332654,3.6,192.25,192.05,3.1169]
[1735294332851,2.6051,192.17,192.12,2.6056]
[1735294334057,3.6,192.19,192.05,3.1169]
[1735294334765,2.6052,192.16,192.11,2.6057]
[1735294335158,3.1373,192.27,192.05,3.1169]
[1735294335459,2.6051,192.17,192.12,2.6056]
[1735294337960,28.35275172,192.26,192.05,3.1169]
[1735294338165,3.6,192.25,192.05,3.1169]
[1735294338662,2.6049,192.19,192.13,2.6055]
[1735294338962,3.6,192.25,192.05,3.1169]
[1735294339154,2.6047,192.19,192.12,2.6056]
[1735294339355,3.6,192.25,192.12,2.6056]
[1735294340164,2.605,192.18,192.12,2.6056]
[1735294340363,2.605,192.18,192.13,2.6055]
[1735294340864,10.68818793,192.25,192.05,3.1169]
[1735294341066,2.605,192.17,192.12,2.6057]
[1735294341266,28.35275172,192.24,192.05,3.1169]
[1735294341657,2.6052,192.16,192.11,2.6058]
[1735294341863,3.6,192.19,192.11,2.6058]
[1735294343458,3.6,192.19,192.09,2.606]
[1735294343665,3.6,192.19,192.06,3.6]
[1735294344064,2.605,192.17,192.09,2.606]
[1735294344371,3.6,192.19,192.06,3.6]
[1735294344969,2.6053,192.16,192.11,2.6058]
[1735294346359,3.6,192.19,192.06,3.6]
[1735294346871,2.6053,192.15,192.11,2.6058]
[1735294347867,2.6056,192.13,192.09,2.606]
[1735294348070,3.6,192.19,192.05,3.1169]
[1735294349067,2.6056,192.13,192.09,2.6061]
[1735294350867,2.6058,192.12,192.07,2.6063]
[1735294351174,2.6058,192.12,192.05,3.1169]
[1735294351472,2.6055,192.14,192.09,2.6061]
[1735294352969,2.6051,192.17,192.09,2.606]
[1735294353268,2.6051,192.17,192.05,3.1169]
[1735294354563,2.6051,192.17,192.12,2.6057]
[1735294355173,2.6051,192.17,192.05,3.1169]
[1735294355375,2.6051,192.17,192.13,2.6054]
[1735294356573,2.6052,192.16,192.12,2.6056]
[1735294356774,2.6052,192.16,192.05,3.1169]
[1735294356975,3.58,192.19,192.05,3.1169]
[1735294358475,2.6051,192.17,192.09,2.6061]
[1735294358773,3.58,192.2,192.05,3.1169]
[1735294359175,2.6049,192.18,192.05,3.1169]
[1735294359770,2.6049,192.18,192.13,2.6055]
[1735294360175,2.6053,192.16,192.11,2.6057]
[1735294360477,3.58,192.2,192.05,3.1169]
[1735294361078,2.6055,192.14,192.09,2.606]
[1735294361267,3.58,192.2,192.09,2.606]
[1735294361472,3.58,192.2,192.05,3.1169]
[1735294361668,2.6058,192.12,192.07,2.6063]
[1735294361877,2.6058,192.12,192.05,3.1169]
[1735294362074,1.6666,192.19,192.04,1.5847]
[1735294362275,2.6061,192.1,192.04,4.1914]
[1735294362474,3.58,192.14,192.04,4.1914]
[1735294362674,3.58,192.14,192.04,1.5847]
[1735294362973,2.6063,192.08,192.04,1.5847]
[1735294364274,3.58,192.14,192.0,3.1227]
[1735294364477,2.7054,192.13,192.0,3.1227]
[1735294366481,2.6062,192.09,192.03,2.6069]
[1735294367284,2.7054,192.13,192.03,2.6069]
[1735294367985,2.7054,192.13,192.0,3.1227]
[1735294368878,2.6062,192.09,192.03,2.6069]
[1735294369287,2.7054,192.13,192.0,3.1227]
[1735294370581,3.58,192.12,192.05,2.6065]
[1735294370782,3.58,192.12,192.0,3.1227]
[1735294370988,2.6063,192.08,192.0,3.1227]
[1735294372277,2.6063,192.08,192.03,2.6068]
[1735294372781,2.6063,192.08,192.0,3.1227]
[1735294374492,2.6063,192.08,192.03,2.6068]
[1735294375782,2.6063,192.08,192.04,2.6067]
[1735294375986,3.58,192.12,192.04,2.6067]
[1735294376183,3.58,192.12,192.0,3.1227]
[1735294376884,2.606,192.1,192.0,3.1227]
[1735294377482,2.606,192.1,192.03,2.6069]
[1735294377687,2.6062,192.09,192.0,3.1227]
[1735294378678,3.58,192.12,192.0,3.1227]
[1735294378885,2.6065,192.06,192.01,2.6071]
[1735294379485,2.6067,192.05,192.01,2.6072]
[1735294380889,3.58,192.06,191.97,1.5972]
[1735294381086,3.58,192.05,191.97,1.5972]
[1735294381291,3.58,192.05,191.9,28.67295336]
[1735294381489,3.58,192.05,191.9,30.22175336]
[1735294381693,1.6539,192.04,191.9,30.22175336]
[1735294382192,1.6539,192.04,191.9,1.5488]
[1735294382685,3.58,192.04,191.9,1.5488]
[1735294382987,2.6069,192.03,191.94,2.6081]
[1735294383191,3.58,192.04,191.9,1.5488]
[1735294383692,3.58,192.04,191.97,2.6076]
[1735294384088,7.08818793,192.09,191.94,3.58]
[1735294384293,7.08818793,192.09,191.95,1.5342]
[1735294384789,7.08818793,192.09,192.03,2.6068]
[1735294384790,2.6061,192.09,192.03,2.6068]
[1735294386293,5.2339,192.12,192.02,2.607]
[1735294386294,2.6063,192.08,192.02,2.607]
[1735294386495,5.2339,192.12,191.96,1.6209]
[1735294386895,5.2339,192.12,191.99,2.6074]
[1735294387094,0.80366666,192.11,191.96,1.6209]
[1735294387690,2.6065,192.06,191.96,1.6209]
[1735294388087,2.6065,192.06,191.99,2.6075]
[1735294388588,2.6065,192.06,191.96,1.6209]
[1735294388798,2.6065,192.06,192.0,2.6073]
[1735294388992,5.2339,192.12,192.0,2.6073]
[1735294389188,0.80380366,192.11,191.96,1.6209]
[1735294389389,0.80380366,192.11,191.98,2.6075]
[1735294390298,0.80380366,192.11,191.99,2.6074]
[1735294390897,2.6068,192.05,191.99,2.6074]
[1735294391488,2.6071,192.02,191.97,2.6076]
[1735294392994,2.6072,192.01,191.95,4.1421]
[1735294393192,2.6072,192.01,191.95,1.5342]
[1735294393992,2.607,192.03,191.95,1.5342]
[1735294394198,3.58,192.06,191.95,1.5342]
[1735294394401,3.58,192.06,191.98,2.6075]
[1735294394602,2.6069,192.03,191.98,2.6075]
[1735294395201,3.58,192.06,191.95,1.5342]
[1735294395403,3.58,192.06,191.91,1.6364]
[1735294395902,1.5713,192.05,191.91,1.6364]
[1735294396104,1.5713,192.05,191.95,2.608]
[1735294396105,2.6072,192.01,191.95,2.608]
[1735294396600,1.5713,192.05,191.95,2.608]
[1735294396800,2.6073,192.0,191.95,2.608]
[1735294397205,2.6073,192.0,191.9,1.5488]
[1735294397206,2.608,191.96,191.9,4.1575]
[1735294398106,5.1689,192.04,191.9,4.1575]
[1735294398304,0.80384138,192.03,191.93,2.6083]
[1735294398602,5.1689,192.04,191.93,2.6083]
[1735294399395,2.6076,191.99,191.93,2.6083]
[1735294400004,2.6076,191.99,191.94,2.6081]
[1735294401001,3.58,192.01,191.9,1.5488]
[1735294401204,2.6076,191.98,191.92,2.6083]
[1735294402598,3.58,192.01,191.9,1.5488]
[1735294402803,2.6076,191.98,191.93,2.6082]
[1735294403301,2.6079,191.96,191.9,4.1574]
[1735294404009,2.6079,191.96,191.9,1.5488]
[1735294404209,2.6079,191.96,191.91,2.6085]
[1735294405205,2.608,191.95,191.91,2.6085]
[1735294405407,2.608,191.95,191.9,1.5488]
[1735294405408,3.58,192.01,191.92,2.6084]
[1735294406707,2.6075,191.99,191.94,2.6081]
[1735294406911,3.58,192.01,191.9,1.5488]
[1735294407709,2.608,191.96,191.91,2.6085]
[1735294408210,2.6081,191.95,191.91,2.6085]
[1735294408610,8.35413804,191.93,191.91,2.6085]
[1735294409907,3.58,192.01,191.91,2.6085]
[1735294410112,3.58,192.01,191.94,2.608]
[1735294410308,8.35413804,191.95,191.9,1.5488]
[1735294410705,8.35413804,191.95,191.93,2.6081]
[1735294411307,8.35413804,191.95,191.9,1.5488]
[1735294411814,8.35413804,191.95,191.93,2.6081]
[1735294412613,8.35413804,191.95,191.91,2.6084]
[1735294412910,8.35413804,191.93,191.91,2.6084]
[1735294414610,8.35413804,191.93,191.9,4.1575]
[1735294415109,8.35413804,191.93,191.9,1.5488]
[1735294415303,8.35413804,191.91,191.85,1.6186]
[1735294415509,8.35413804,191.91,191.85,3.1439]
[1735294415909,3.58,192.01,191.85,3.1439]
[1735294415910,2.6081,191.95,191.9,2.6087]
[1735294416112,8.35413804,191.93,191.86,8.35413804]
[1735294416510,8.35413804,191.93,191.91,2.6085]
[1735294418324,8.35413804,191.93,191.86,8.35413804]
[1735294418614,8.35413804,191.93,191.92,2.6084]
[1735294418814,8.35413804,191.93,191.85,3.1439]
[1735294419016,8.35413804,191.9,191.85,3.1439]
[1735294420013,8.35413804,191.87,191.79,1.0886521]
[1735294420313,8.35413804,191.84,191.79,1.0886521]
[1735294420515,8.35413804,191.82,191.79,1.0886521]
[1735294420914,8.35413804,191.82,191.81,2.6098]
[1735294425623,8.35413804,191.82,191.8,2.6099]
[1735294425824,8.35413804,191.82,191.79,1.0886521]
[1735294426325,1.1011,191.93,191.79,1.0886521]
[1735294426326,8.35413804,191.84,191.79,1.0886521]
[1735294426625,8.35413804,191.86,191.79,1.0886521]
[1735294426919,8.35413804,191.86,191.85,2.6094]
[1735294427322,8.35413804,191.86,191.83,2.6096]
[1735294427523,8.35413804,191.84,191.83,2.6096]
[1735294427920,2.6087,191.91,191.85,2.6093]
[1735294428225,2.6087,191.91,191.79,1.0886521]
[1735294428226,8.35413804,191.85,191.79,1.0886521]
[1735294428526,8.35413804,191.85,191.84,2.6095]
[1735294429023,8.35413804,191.85,191.8,2.61]
[1735294429222,8.35413804,191.85,191.79,1.0886521]
[1735294430019,8.35413804,191.85,191.83,2.6096]
[1735294430423,8.35413804,191.85,191.79,1.0886521]
[1735294430627,2.609,191.88,191.83,2.6096]
[1735294432834,3.58,191.9,191.79,1.0886521]
[1735294432835,8.35413804,191.84,191.79,1.0886521]
[1735294433034,0.262,191.92,191.79,1.0886521]
[1735294433035,8.35413804,191.8,191.79,1.0886521]
[1735294433832,3.1959,191.87,191.79,1.0886521]
[1735294434031,8.35413804,191.82,191.79,1.0886521]
[1735294434335,8.35413804,191.84,191.81,2.6099]
[1735294434924,8.35413804,191.84,191.79,1.0886521]
[1735294435137,8.35413804,191.84,191.82,2.6098]
[1735294440240,3.56,191.87,191.81,2.6099]
[1735294440542,8.35413804,191.86,191.79,1.0886521]
[1735294440740,8.35413804,191.84,191.79,1.0886521]
[1735294440940,8.35413804,191.84,191.81,2.6098]
[1735294441142,8.35413804,191.84,191.79,1.0886521]
[1735294442042,8.35413804,191.84,191.81,2.6099]
[1735294443040,3.56,191.87,191.79,3.6988521]
[1735294443041,8.35413804,191.82,191.79,3.6988521]
[1735294443445,8.35413804,191.8,191.79,1.0886521]
[1735294445842,8.35413804,191.8,191.79,3.6988521]
[1735294446243,8.35413804,191.8,191.79,1.0886521]
[1735294446544,3.56,191.87,191.79,1.0886521]
[1735294446744,8.35413804,191.8,191.79,1.0886521]
[1735294447337,8.35413804,191.8,191.79,3.6988521]
[1735294448943,2.6096,191.84,191.79,3.6988521]
[1735294449143,8.35413804,191.82,191.79,1.0886521]
[1735294449342,3.56,191.87,191.79,1.0886521]
[1735294449650,8.35413804,191.82,191.79,1.0886521]
[1735294450246,8.35413804,191.82,191.81,2.6099]
[1735294450444,55.25961204,191.92,191.79,1.0886521]
[1735294450652,8.35413804,191.84,191.79,1.0886521]
[1735294451947,8.35413804,191.82,191.79,1.0886521]
[1735294452945,8.35413804,191.82,191.8,2.6101]
[1735294453147,8.35413804,191.82,191.79,1.0886521]
[1735294453351,8.35413804,191.8,191.79,1.0886521]
[1735294455556,8.35413804,191.8,191.79,3.6988521]
[1735294455850,8.35413804,191.8,191.79,1.0886521]
[1735294456852,8.35413804,191.8,191.66,57.34590673]
[1735294457147,54.26,191.82,191.56,37.14705387]
[1735294457148,8.35413804,191.67,191.65,61.13608546]
[1735294458356,8.35413804,191.67,191.59,2.6129]
[1735294458357,10.96593804,191.67,191.59,2.6129]
[1735294458557,8.35413804,191.6,191.56,3.1997]
[1735294459563,8.35413804,191.6,191.59,2.6129]
[1735294459760,2.6118,191.67,191.56,3.1997]
[1735294459761,28.35275172,191.7,191.56,3.1997]
[1735294459964,8.35413804,191.63,191.56,3.1997]
[1735294460154,13.09453808,191.66,191.62,2.6124]
[1735294463459,13.09453808,191.66,191.63,2.6124]
[1735294464063,13.09453808,191.66,191.52,13.09453808]
[1735294464258,13.09453808,191.66,191.53,4.7308]
[1735294464761,13.09453808,191.66,191.61,2.6127]
[1735294465858,13.09453808,191.66,191.53,8.2908]
[1735294466564,15.70653808,191.66,191.6,2.6128]
[1735294467165,13.09453808,191.66,191.53,8.2908]